bitfinex/quotes_ETHUSD_20251120
["timestamp","ask_amount","ask_price","bid_price","bid_amount"]
[1763615039528,1.74798995,3052.5,3052.4,0.001]
[1763615039757,0.9465,3052.5,3052.4,0.001]
[1763615039986,0.4554,3052.5,3052.4,0.001]
[1763615040153,0.9465,3052.5,3052.4,0.001]
[1763615040885,0.1818,3052.8,3052.4,0.001]
[1763615041398,0.6729,3052.8,3052.4,0.001]
[1763615041561,0.4588,3052.5,3052.4,0.001]
[1763615041953,0.9499,3052.5,3052.4,0.001]
[1763615042851,1.466404,3052.5,3052.4,0.001]
[1763615043575,5.64939991,3052.5,3052.4,0.001]
[1763615043999,4.63140727,3052.5,3052.4,0.001]
[1763615044321,5.53312686,3052.5,3052.4,0.001]
[1763615044618,1.74061959,3052.5,3052.4,0.001]
[1763615044785,0.4588,3052.5,3052.4,0.001]
[1763615045535,0.1818,3052.8,3052.4,0.001]
[1763615045824,0.7839,3052.8,3052.4,0.001]
[1763615046804,0.4911,3052.7,3052.4,0.001]
[1763615047011,0.4588,3052.5,3052.4,0.001]
[1763615047218,0.864304,3052.5,3052.4,0.001]
[1763615047436,1.355404,3052.5,3052.4,0.001]
[1763615047586,4.63140727,3052.5,3052.4,0.001]
[1763615047786,5.42623202,3052.5,3052.4,0.001]
[1763615049016,6.33322466,3052.5,3052.4,0.001]
[1763615050142,5.42623202,3052.5,3052.4,0.001]
[1763615050289,5.53723202,3052.5,3052.4,0.001]
[1763615050491,5.42623202,3052.5,3052.4,0.001]
[1763615051237,4.93513202,3052.5,3052.4,0.001]
[1763615051420,5.54383202,3052.5,3052.4,0.001]
[1763615052204,2.26782875,3052.5,3052.4,0.001]
[1763615052409,1.473004,3052.5,3052.4,0.001]
[1763615052729,4.74900727,3052.5,3052.4,0.001]
[1763615052893,4.78995731,3052.5,3052.4,0.001]
[1763615053424,5.69694995,3052.5,3052.4,0.001]
[1763615054612,5.65599991,3052.5,3052.4,0.001]
[1763615054791,5.53119642,3052.5,3052.4,0.001]
[1763615054991,5.68314646,3052.5,3052.4,0.001]
[1763615055218,6.5901391,3052.5,3052.4,0.001]
[1763615055618,6.54918906,3052.5,3052.4,0.001]
[1763615057038,1.31249664,3052.4,3052.0,0.001]
[1763615057203,1.31249664,3052.0,3051.7,0.001]
[1763615057532,0.667104,3051.8,3051.7,0.001]
[1763615057896,1.164804,3051.8,3051.7,0.001]
[1763615058132,1.38717947,3051.8,3051.7,0.001]
[1763615059037,5.57092681,3051.8,3051.7,0.001]
[1763615062937,5.68192681,3051.8,3051.7,0.001]
[1763615063131,4.77493417,3051.8,3051.7,0.001]
[1763615063535,0.89318915,3052.5,3051.7,0.4744]
[1763615063852,7.16131408,3052.3,3051.7,0.001]
[1763615064053,0.405504,3052.2,3051.7,0.001]
[1763615064553,6.66361408,3052.3,3051.7,0.001]
[1763615064855,0.405504,3052.2,3051.7,0.001]
[1763615065353,3.27619054,3052.4,3051.7,0.462]
[1763615065518,0.111,3052.3,3051.7,0.462]
[1763615065935,0.405504,3052.2,3051.7,0.462]
[1763615067851,3.68183812,3052.2,3051.7,0.462]
[1763615068153,3.6817605,3052.3,3051.7,0.462]
[1763615068520,0.111,3052.2,3051.7,0.462]
[1763615069758,3.38735098,3052.2,3051.7,0.462]
[1763615070761,3.42830504,3052.2,3051.7,0.462]
[1763615071224,6.70465602,3052.2,3051.7,0.462]
[1763615071423,6.70465602,3052.2,3051.7,0.001]
[1763615071424,6.66370196,3052.2,3051.7,0.001]
[1763615071655,0.0409554,3052.1,3051.7,0.001]
[1763615071863,0.942504,3051.8,3051.7,0.001]
[1763615072059,1.053504,3051.8,3051.7,0.001]
[1763615072235,1.542404,3051.8,3051.7,0.001]
[1763615072583,0.405504,3051.8,3051.7,0.001]
[1763615072729,0.980204,3051.8,3051.7,0.001]
[1763615072927,0.516504,3051.8,3051.7,0.001]
[1763615073353,0.111,3051.8,3051.7,0.001]
[1763615074030,4.70332619,3051.8,3051.7,0.001]
[1763615075148,5.19222619,3051.8,3051.7,0.001]
[1763615075356,5.23318562,3051.8,3051.7,0.001]
[1763615075869,6.14017826,3051.8,3051.7,0.001]
[1763615079275,6.09921883,3051.8,3051.7,0.001]
[1763615079454,6.14017826,3051.8,3051.7,0.001]
[1763615080558,6.09921883,3051.8,3051.7,0.001]
[1763615081451,5.10781483,3051.8,3051.7,0.001]
[1763615081648,5.73687426,3051.8,3051.7,0.001]
[1763615081896,6.14237826,3051.8,3051.7,0.001]
[1763615082551,5.14661883,3051.8,3051.7,0.001]
[1763615082875,5.62431883,3051.8,3051.7,0.001]
[1763615083095,6.10141883,3051.8,3051.7,0.001]
[1763615083683,5.62431883,3051.8,3051.7,0.001]
[1763615083889,6.10141883,3051.8,3051.7,0.001]
[1763615084462,5.62431883,3051.8,3051.7,0.001]
[1763615085188,6.10141883,3051.8,3051.7,0.001]
[1763615085706,5.62431883,3051.8,3051.7,0.001]
[1763615085913,5.14661883,3051.8,3051.7,0.001]
[1763615087707,5.62431883,3051.8,3051.7,0.001]
[1763615089309,5.17795134,3051.8,3051.7,0.001]
[1763615090498,4.70025134,3051.8,3051.7,0.4522]
[1763615091012,4.70025134,3051.8,3051.7,0.001]
[1763615091370,5.17795134,3051.8,3051.7,0.001]
[1763615092615,5.65505134,3051.8,3051.7,0.001]
[1763615092924,6.99008181,3051.8,3051.7,0.001]
[1763615093117,6.94912238,3051.8,3051.7,0.001]
[1763615093423,6.36102238,3051.8,3051.7,0.001]
[1763615093626,0.405504,3051.8,3051.7,0.4522]
[1763615093789,0.111,3051.8,3051.7,0.9346]
[1763615093989,3.27855332,3052.0,3051.7,0.9346]
[1763615094204,3.79504397,3052.0,3051.9,0.4512]
[1763615094604,3.79504397,3052.0,3051.9,0.9336]
[1763615094800,0.113,3052.0,3051.9,0.9336]
[1763615095019,0.002,3052.0,3051.9,0.9336]
[1763615095524,0.002,3052.0,3051.7,0.001]
[1763615095525,0.9568,3052.0,3051.7,0.001]
[1763615095723,0.405504,3051.8,3051.7,0.001]
[1763615096293,0.405504,3051.9,3051.7,0.001]
[1763615096510,0.405504,3051.9,3051.8,0.9336]
[1763615097022,0.405504,3051.8,3051.7,0.001]
[1763615097328,3.6822587,3051.8,3051.7,0.001]
[1763615097626,3.6822587,3051.8,3051.7,0.4522]
[1763615098891,0.405504,3051.9,3051.7,0.9346]
[1763615099120,0.405504,3051.9,3051.7,0.4834]
[1763615099322,3.68413094,3052.0,3051.8,0.9336]
[1763615099504,3.68413094,3052.0,3051.9,0.4512]
[1763615099699,3.68413094,3052.0,3051.7,0.001]
[1763615100248,3.68413094,3052.0,3051.9,0.4512]
[1763615100453,3.68404397,3052.0,3051.9,0.4512]
[1763615101075,8.18637991,3052.0,3051.7,0.001]
[1763615101348,3.9360587,3051.8,3051.7,0.001]
[1763615101660,4.4131587,3051.8,3051.7,0.001]
[1763615102625,3.9360587,3051.8,3051.7,0.001]
[1763615102953,3.7422587,3051.8,3051.7,0.001]
[1763615103259,5.430817,3051.8,3051.7,0.001]
[1763615103620,4.953717,3051.8,3051.7,0.001]
[1763615104049,1.6169623,3051.8,3051.7,0.4522]
[1763615104250,3.38771269,3051.9,3051.7,0.9346]
[1763615104423,3.38771269,3051.9,3051.8,0.4512]
[1763615104630,3.38771269,3051.9,3051.8,0.9336]
[1763615104835,3.38771269,3051.9,3051.8,0.4512]
[1763615105041,3.79321669,3051.9,3051.8,0.4512]
[1763615105250,0.405504,3051.8,3051.7,0.001]
[1763615105752,0.405504,3051.8,3051.7,0.9346]
[1763615106643,0.405504,3051.9,3051.7,0.9346]
[1763615106814,0.405504,3051.9,3051.8,0.4512]
[1763615107453,0.405504,3051.9,3051.8,0.9336]
[1763615107653,3.68215133,3051.9,3051.8,0.9336]
[1763615108438,0.405504,3051.9,3051.8,0.9336]
[1763615108753,0.113,3052.0,3051.8,0.9061]
[1763615108754,0.002,3052.0,3051.8,0.9061]
[1763615108923,3.2785789,3052.0,3051.8,0.4512]
[1763615109125,0.04095809,3051.9,3051.8,0.4512]
[1763615109326,0.405504,3051.9,3051.8,0.4512]
[1763615109772,3.68215133,3051.9,3051.8,0.4512]
[1763615110133,3.68215133,3051.9,3051.7,0.001]
[1763615110461,0.405504,3051.9,3051.8,0.4503]
[1763615110655,3.68215133,3051.9,3051.7,0.001]
[1763615110860,4.05054624,3051.9,3051.7,0.001]
[1763615111265,4.05054624,3051.9,3051.8,0.001]
[1763615111664,4.05054624,3051.9,3051.8,0.4513]
[1763615111968,3.68215133,3051.9,3051.8,0.9062]
[1763615112636,4.16365133,3051.9,3051.8,0.001]
[1763615114530,3.68215133,3051.9,3051.8,0.001]
[1763615115474,4.16365133,3051.9,3051.8,0.001]
[1763615115674,4.91895984,3051.9,3051.8,0.001]
[1763615116171,5.49321793,3051.9,3051.8,0.001]
[1763615116471,6.40021057,3051.9,3051.8,0.001]
[1763615116774,9.16490174,3051.9,3051.8,0.001]
[1763615116945,6.66621886,3051.9,3051.8,0.001]
[1763615118058,9.12394365,3051.9,3051.8,0.001]
[1763615118261,9.23494365,3051.9,3051.8,0.001]
[1763615118770,6.47025248,3051.9,3051.8,0.001]
[1763615119273,5.93695248,3051.9,3051.8,0.001]
[1763615119442,6.47615248,3051.9,3051.8,0.001]
[1763615120172,5.99995248,3051.9,3051.8,0.001]
[1763615120365,5.53144848,3051.9,3051.8,0.001]
[1763615120764,5.93695248,3051.9,3051.8,0.001]
[1763615120946,5.97791057,3051.9,3051.8,0.001]
[1763615121340,6.51711057,3051.9,3051.8,0.001]
[1763615122377,4.27465133,3051.9,3051.8,0.001]
[1763615124541,0.405504,3051.9,3051.8,0.4513]
[1763615124851,3.68215133,3051.9,3051.8,0.9062]
[1763615125050,0.405504,3051.9,3051.8,0.9062]
[1763615125259,3.68215133,3051.9,3051.8,0.9062]
[1763615125677,0.405504,3051.9,3051.8,0.9062]
[1763615126146,0.002,3052.0,3051.8,0.9062]
[1763615126353,0.002,3052.0,3051.9,0.9052]
[1763615126684,3.27853997,3052.0,3051.9,0.9052]
[1763615127176,0.002,3052.0,3051.9,0.9052]
[1763615129058,0.002,3052.0,3051.9,0.4503]
[1763615129376,0.4887,3052.0,3051.8,0.001]
[1763615129752,0.44646209,3051.9,3051.8,0.001]
[1763615129967,0.405504,3051.9,3051.8,0.001]
[1763615130372,0.892204,3051.9,3051.8,0.001]
[1763615130578,1.65210794,3051.9,3051.8,0.001]
[1763615130882,4.92875527,3051.9,3051.8,0.001]
[1763615131487,5.39495527,3051.9,3051.8,0.001]
[1763615131655,0.407504,3052.0,3051.8,0.9742]
[1763615131852,0.407504,3052.0,3051.9,0.4942]
[1763615132054,3.68404397,3052.0,3051.9,0.9732]
[1763615132255,3.68404397,3052.0,3051.9,0.4942]
[1763615132982,3.68404397,3052.0,3051.9,0.9732]
[1763615132983,0.407504,3052.0,3051.9,0.9732]
[1763615133357,0.002,3052.0,3051.9,0.9732]
[1763615133679,3.27853997,3052.0,3051.9,0.4942]
[1763615134086,0.002,3052.0,3051.9,0.9732]
[1763615135375,0.002,3052.0,3051.9,0.4942]
[1763615135966,0.002,3052.0,3051.9,4.24984733]
[1763615136176,0.002,3052.4,3052.0,0.90699264]
[1763615136493,0.002,3053.1,3052.4,0.90699264]
[1763615136785,0.002,3053.1,3052.6,0.4942]
[1763615137159,0.002,3053.1,3052.6,10.80088785]
[1763615137418,0.002,3053.4,3053.0,0.4942]
[1763615137707,0.002,3053.4,3053.3,0.6887]
[1763615138711,0.002,3053.4,3053.3,1.1878]
[1763615140415,0.002,3053.4,3053.3,0.6887]
[1763615141711,0.002,3053.4,3053.3,1.1878]
[1763615141921,0.002,3053.4,3053.3,0.6887]
[1763615142094,0.002,3053.4,3053.3,1.1878]
[1763615142903,0.002,3053.4,3053.3,2.09479264]
[1763615143202,0.002,3053.4,3053.3,5.36993756]
[1763615143401,0.002,3053.4,3053.3,2.09479264]
[1763615143980,0.002,3053.4,3053.3,1.1878]
[1763615144175,0.002,3053.4,3053.3,1.2988]
[1763615144886,0.002,3053.4,3053.3,5.48093756]
[1763615149337,0.002,3053.4,3053.3,5.25371119]
[1763615149634,0.002,3053.4,3053.3,9.76414875]
[1763615153714,0.002,3053.4,3053.3,9.65314875]
[1763615153990,0.002,3053.4,3053.3,9.76414875]
[1763615154387,0.002,3053.8,3053.3,9.84135275]
[1763615154641,0.002,3053.8,3053.7,4.44291119]
[1763615154794,0.002,3053.8,3053.7,6.11665646]
[1763615154998,0.002,3053.8,3053.7,6.61575646]
[1763615155250,0.002,3053.8,3053.7,3.74592823]
[1763615155418,0.002,3053.8,3053.7,3.85692823]
[1763615156229,0.002,3053.8,3053.7,3.88967538]
[1763615156609,0.002,3053.8,3053.7,3.77867538]
[1763615156802,0.002,3053.8,3053.7,3.88967538]
[1763615157222,0.002,3053.8,3053.7,7.16439129]
[1763615157436,0.002,3053.8,3053.7,6.61575646]
[1763615157741,0.002,3053.8,3053.7,9.89047237]
[1763615157901,0.002,3053.8,3053.7,10.79746501]
[1763615159434,0.002,3053.8,3053.7,9.22397154]
[1763615159839,0.002,3053.8,3053.7,5.94925563]
[1763615160631,0.002,3053.8,3053.7,5.83825563]
[1763615160928,0.474,3053.8,3053.3,0.1945]
[1763615161245,0.474,3053.8,3053.4,0.111]
[1763615161825,0.472,3053.5,3053.2,0.111]
[1763615162047,0.1803,3053.4,3053.2,0.111]
[1763615162353,0.4978,3053.7,3053.2,0.111]
[1763615162923,0.002,3053.8,3053.2,0.111]
[1763615163464,0.002,3053.8,3053.2,0.6101]
[1763615164531,0.002,3053.8,3053.7,0.488]
[1763615164740,0.002,3053.8,3053.7,0.599]
[1763615165076,0.002,3053.8,3053.7,1.0981]
[1763615165955,0.002,3053.8,3053.7,0.599]
[1763615166551,0.002,3053.8,3053.7,1.0981]
[1763615167287,0.002,3053.8,3053.7,1.13084715]
[1763615167436,0.002,3053.8,3053.7,0.111]
[1763615167637,0.002,3053.8,3053.7,0.599]
[1763615167869,0.002,3053.8,3053.7,0.9871]
[1763615168051,0.002,3053.8,3053.3,0.111]
[1763615168052,4.62386299,3053.8,3053.3,0.111]
[1763615168255,0.4824,3053.8,3053.2,0.03275252]
[1763615168459,0.4824,3053.8,3053.4,0.111]
[1763615168782,0.4824,3053.8,3053.0,10.001]
[1763615168783,4.89776299,3053.8,3053.0,10.001]
[1763615168934,4.42656299,3053.8,3053.1,0.63605359]
[1763615169282,4.42656299,3053.8,3053.2,0.111]
[1763615170096,0.002,3053.8,3053.7,0.4724]
[1763615170388,0.002,3053.8,3053.7,0.5834]
[1763615170546,0.002,3053.8,3053.7,1.0757]
[1763615170744,0.002,3053.8,3053.7,1.10844715]
[1763615172388,0.002,3053.8,3053.7,1.98269264]
[1763615177594,0.002,3053.8,3053.7,8.17718596]
[1763615177907,0.002,3053.8,3053.7,8.14443881]
[1763615178407,0.002,3053.8,3053.7,4.8697229]
[1763615178707,0.002,3053.8,3053.7,8.14443881]
[1763615179498,0.002,3053.8,3053.7,4.7587229]
[1763615179704,0.002,3053.8,3053.7,1.49039264]
[1763615179906,0.002,3053.8,3053.7,8.17718596]
[1763615180111,0.002,3053.8,3053.7,8.14443881]
[1763615180282,0.002,3053.8,3053.7,4.7587229]
[1763615180492,0.002,3053.8,3053.7,1.52313979]
[1763615180695,0.002,3053.8,3053.7,2.01543979]
[1763615181104,0.002,3053.8,3053.7,4.90247005]
[1763615181489,0.002,3053.8,3053.7,8.17718596]
[1763615181807,0.002,3053.8,3053.7,8.1421078]
[1763615182012,0.002,3053.8,3053.7,5.25740855]
[1763615182513,0.002,3053.8,3053.7,8.14192871]
[1763615183010,0.002,3053.8,3053.7,8.03092871]
[1763615183207,0.002,3053.8,3053.7,8.14192871]
[1763615183413,0.002,3053.8,3053.7,8.03092871]
[1763615183709,0.002,3053.8,3053.7,5.30740855]
[1763615184015,0.002,3054.2,3054.1,0.05]
[1763615184305,0.002,3054.2,3054.1,0.77564287]
[1763615184506,0.002,3054.2,3054.1,1.59624287]
[1763615184806,0.002,3054.2,3054.1,5.77752253]
[1763615184975,4.4929172,3055.4,3054.2,1.23529264]
[1763615185179,0.4712,3055.4,3054.6,0.90699264]
[1763615185403,0.4712,3055.4,3054.7,0.111]
[1763615186115,0.4804,3054.8,3054.7,0.111]
[1763615186416,0.4712,3055.4,3054.7,0.111]
[1763615186620,0.4712,3055.3,3054.7,0.111]
[1763615187220,3.27239034,3055.9,3054.7,0.111]
[1763615187222,0.4589,3055.9,3054.8,1.415628]
[1763615187514,0.1973,3057.0,3055.2,0.6317]
[1763615187715,0.1834,3056.5,3055.3,0.111]
[1763615188104,0.4589,3056.4,3055.4,0.111]
[1763615188616,0.4589,3056.4,3055.5,0.111]
[1763615189184,3.73073342,3056.4,3055.6,0.111]
[1763615189516,4.85147435,3056.4,3055.6,0.111]
[1763615189723,0.4589,3056.3,3055.6,0.111]
[1763615191603,0.4589,3056.3,3054.9,2.88197616]
[1763615191604,0.5346,3055.7,3054.7,2.88197616]
[1763615191808,0.0622,3055.7,3054.8,0.14373536]
[1763615192126,0.0622,3055.7,3054.8,0.5869]
[1763615192360,0.0622,3055.7,3054.8,1.49389264]
[1763615192818,0.0622,3055.7,3054.8,0.5869]
[1763615193006,0.0622,3055.7,3054.9,1.38289264]
[1763615193210,0.5211,3055.7,3054.9,1.38289264]
[1763615193930,0.5211,3055.7,3054.9,0.4759]
[1763615194228,0.5211,3055.7,3054.7,0.90699264]
[1763615194430,0.5211,3055.7,3054.8,0.111]
[1763615194632,0.5211,3055.7,3054.9,0.111]
[1763615195000,0.4724,3055.0,3054.9,0.111]
[1763615195923,0.9313,3055.0,3054.3,1.38289264]
[1763615196252,0.4589,3055.3,3054.4,0.5869]
[1763615196850,0.4589,3055.3,3054.2,0.90699264]
[1763615197010,0.405504,3055.2,3053.8,0.05]
[1763615197204,0.405504,3055.2,3053.9,0.111]
[1763615197450,0.405504,3055.0,3053.7,1.38289264]
[1763615197620,0.74108345,3054.9,3053.9,0.03274501]
[1763615197830,0.92448345,3054.9,3054.0,0.111]
[1763615198038,0.4899,3054.8,3054.0,0.111]
[1763615198247,0.4887,3054.1,3054.0,0.111]
[1763615198540,0.4899,3054.8,3054.0,0.111]
[1763615198739,0.4899,3054.7,3054.0,0.111]
[1763615198940,0.4899,3054.7,3053.6,4.18180371]
[1763615199162,0.4899,3054.7,3053.5,4.0217172]
[1763615199163,0.4899,3054.7,3053.7,0.111]
[1763615199509,0.4899,3054.7,3053.5,4.92870984]
[1763615199755,0.4899,3054.7,3053.6,0.111]
[1763615199955,0.4899,3054.7,3053.7,0.00751554]
[1763615201238,3.76354492,3054.7,3053.7,0.00751554]
[1763615201442,0.37635449,3054.6,3053.6,0.111]
[1763615201623,0.86625449,3054.6,3053.6,0.111]
[1763615201983,0.6728,3053.7,3053.4,0.001]
[1763615202116,0.2923,3053.5,3053.4,0.001]
[1763615202659,0.7822,3053.5,3053.4,0.001]
[1763615203358,0.1841,3054.0,3053.4,0.9702]
[1763615203528,0.1841,3054.0,3053.4,0.4814]
[1763615203725,0.4899,3053.9,3053.4,0.001]
[1763615204143,0.4887,3053.5,3053.4,0.001]
[1763615204549,0.9786,3053.5,3053.4,0.112]
[1763615204769,0.9786,3053.5,3053.4,0.001]
[1763615204934,0.1841,3054.0,3053.4,0.112]
[1763615205360,0.4899,3053.9,3053.4,0.112]
[1763615208148,0.4887,3053.5,3053.4,0.001]
[1763615208530,0.9786,3053.5,3053.4,0.001]
[1763615209167,1.384104,3053.5,3053.4,0.001]
[1763615209364,0.405504,3053.4,3053.0,10.001]
[1763615209566,0.697804,3053.1,3053.0,10.001]
[1763615209781,0.697804,3053.1,3053.0,9.5094]
[1763615209782,1.182804,3053.1,3053.0,9.5094]
[1763615209957,1.182804,3053.1,3053.0,3.5094]
[1763615211383,4.45816347,3053.1,3053.0,3.5094]
[1763615213059,0.7773,3053.1,3053.0,3.5094]
[1763615213499,0.2923,3053.1,3053.0,3.5094]
[1763615213646,3.45892354,3054.9,3053.0,3.5094]
[1763615213843,0.4899,3053.8,3053.1,1.01799264]
[1763615214055,0.405504,3053.7,3053.1,1.01799264]
[1763615214471,0.4899,3053.8,3053.1,1.01799264]
[1763615215362,0.2894,3053.2,3053.1,0.90699264]
[1763615215665,3.27471591,3053.7,3053.1,1.01799264]
[1763615215870,3.27451982,3053.9,3053.1,1.20339264]
[1763615215871,0.4899,3053.9,3053.1,1.20339264]
[1763615216257,0.4899,3053.9,3053.1,1.01799264]
[1763615216258,0.53083126,3053.9,3053.1,1.01799264]
[1763615216456,0.4899,3053.9,3053.1,1.01799264]
[1763615216672,0.88841042,3053.9,3053.1,1.01799264]
[1763615217079,0.4899,3053.9,3053.1,1.09239264]
[1763615217284,3.27482315,3053.6,3053.0,3.5094]
[1763615217492,3.27482315,3053.6,3053.2,0.111]
[1763615219000,0.4899,3053.5,3053.2,0.111]
[1763615219699,0.2894,3053.3,3053.2,0.111]
[1763615219906,0.405504,3053.2,3053.0,3.5094]
[1763615220071,0.7793,3053.1,3053.0,3.6204]
[1763615221589,3.27475734,3053.7,3053.0,3.6204]
[1763615221590,3.68037161,3053.6,3053.0,4.1008]
[1763615221775,3.68037161,3053.6,3053.1,0.00753771]
[1763615221977,0.41702716,3053.6,3053.1,0.1854]
[1763615222279,0.4899,3054.1,3053.1,1.58119264]
[1763615222487,3.45854931,3054.0,3053.1,1.58119264]
[1763615222666,3.45854931,3054.0,3053.2,0.4888]
[1763615223471,6.73299862,3054.0,3053.2,0.4888]
[1763615224219,3.45854931,3054.0,3053.2,0.4888]
[1763615224512,4.1808249,3054.0,3053.2,0.4888]
[1763615224714,0.1841,3054.0,3053.2,0.4888]
[1763615224872,3.27407261,3054.3,3053.3,0.00752991]
[1763615225077,3.27407261,3054.3,3053.4,0.111]
[1763615225273,3.27407261,3054.3,3053.5,0.4888]
[1763615225673,6.54814921,3054.3,3053.5,0.4888]
[1763615226172,3.27407261,3054.3,3053.5,0.4888]
[1763615226484,3.27407261,3054.3,3053.5,0.49632211]
[1763615227208,3.27407261,3054.3,3053.5,0.4888]
[1763615227607,3.27407261,3054.3,3053.5,0.49632211]
[1763615228116,3.27407261,3054.3,3053.5,0.4888]
[1763615228625,3.27397011,3054.4,3053.5,0.4888]
[1763615228626,3.6793836,3054.5,3053.5,0.4888]
[1763615228783,7.84019156,3054.5,3053.4,0.111]
[1763615228982,0.4589,3054.4,3053.4,0.111]
[1763615229182,0.4464299,3054.3,3053.3,0.4777]
[1763615229386,0.405504,3054.3,3053.4,0.111]
[1763615229589,0.4589,3054.2,3053.4,0.111]
[1763615230403,3.27417491,3054.3,3053.5,0.111]
[1763615230634,3.73244674,3054.8,3053.7,0.90699264]
[1763615230929,3.73244674,3054.8,3054.2,0.4874]
[1763615231081,7.00599348,3054.8,3054.2,0.5984]
[1763615231280,3.73244674,3054.8,3054.2,0.5984]
[1763615231775,0.4589,3054.8,3054.2,0.5984]
[1763615231939,0.002,3054.9,3054.3,0.4777]
[1763615232311,0.32953956,3054.9,3054.3,0.4777]
[1763615232536,3.6030136,3054.9,3054.3,0.4777]
[1763615232753,0.002,3054.9,3054.3,0.4777]
[1763615233736,0.002,3054.8,3054.3,0.4777]
[1763615234123,0.002,3054.8,3054.7,0.4874]
[1763615234441,0.002,3054.8,3054.7,1.0761]
[1763615234625,0.002,3054.8,3054.7,5.9271725]
[1763615235026,0.002,3054.8,3054.7,1.50539264]
[1763615235235,0.002,3054.8,3054.7,1.39439264]
[1763615235456,0.002,3054.8,3054.7,1.50539264]
[1763615237048,0.002,3054.8,3054.7,1.01799264]
[1763615237350,0.002,3054.8,3054.7,1.50539264]
[1763615237553,0.002,3054.8,3054.7,0.90699264]
[1763615237740,0.1773,3054.8,3054.7,0.111]
[1763615238048,0.002,3054.8,3054.7,0.111]
[1763615238942,0.002,3054.8,3054.7,0.5984]
[1763615239723,0.002,3054.8,3054.7,0.111]
[1763615240251,0.50503243,3054.8,3054.7,0.111]
[1763615240622,0.1773,3054.8,3054.7,0.111]
[1763615241254,0.002,3054.8,3054.7,5.9271725]
[1763615241627,0.002,3054.8,3054.7,1.98309264]
[1763615241834,0.002,3054.8,3054.7,1.01799264]
[1763615242035,0.002,3054.8,3054.7,1.50539264]
[1763615242860,0.002,3054.8,3054.7,5.9271725]
[1763615243537,0.002,3054.8,3054.7,9.20081639]
[1763615243950,0.002,3055.2,3054.7,9.20081639]
[1763615243951,0.002,3055.2,3054.8,5.37309264]
[1763615244261,0.002,3055.2,3055.1,8.9782725]
[1763615244555,0.4589,3057.1,3055.4,0.90699264]
[1763615244763,0.4589,3057.1,3056.1,0.90699264]
[1763615245068,3.73006056,3057.1,3056.2,0.7775]
[1763615245247,3.63006056,3057.1,3056.2,0.7775]
[1763615246181,0.1575,3057.7,3057.0,0.4874]
[1763615246469,0.1575,3057.7,3057.1,0.7872]
[1763615247034,6.5400085,3058.1,3057.1,0.7872]
[1763615247250,3.27000425,3058.1,3057.2,4.42957986]
[1763615247661,3.46581098,3058.2,3057.1,1.20679264]
[1763615247662,0.1959,3058.2,3057.1,1.20679264]
[1763615247835,3.46581828,3058.2,3057.3,4.42957986]
[1763615248370,3.46581828,3058.2,3057.1,1.20679264]
[1763615248371,0.4481,3058.8,3057.9,3.94407986]
[1763615248584,0.4481,3058.8,3058.0,0.111]
[1763615248936,0.4481,3058.8,3058.1,0.1897]
[1763615249138,0.90699264,3059.4,3058.1,0.1897]
[1763615249139,0.1959,3060.0,3058.7,0.469]
[1763615249342,0.1959,3060.0,3059.2,3.94407986]
[1763615249591,0.1959,3060.0,3059.3,0.111]
[1763615250083,3.26809335,3059.9,3059.4,0.4855]
[1763615250282,3.26768645,3060.3,3059.6,0.469]
[1763615250451,0.4532,3060.7,3059.6,1.37599264]
[1763615250452,0.1605,3060.6,3059.6,1.37599264]
[1763615250662,0.1605,3060.6,3059.6,1.86149264]
[1763615250855,0.00164894,3061.3,3060.6,0.05]
[1763615251183,0.00164894,3061.3,3061.0,0.05]
[1763615251480,0.00164894,3061.3,3061.0,0.90699264]
[1763615251652,0.00164894,3061.3,3061.1,0.111]
[1763615251854,0.4829,3061.1,3060.7,0.90699264]
[1763615252054,0.4751,3061.2,3060.8,0.111]
[1763615252274,0.00164894,3061.3,3060.9,3.94407986]
[1763615252778,0.00164894,3061.3,3061.2,4.8510725]
[1763615252977,0.00164894,3061.3,3061.2,4.9620725]
[1763615253168,0.00164894,3061.3,3061.2,0.90699264]
[1763615253654,0.95964894,3061.3,3061.2,0.111]
[1763615254272,0.95964894,3061.3,3060.5,0.90699264]
[1763615254273,0.95964894,3061.3,3061.0,0.111]
[1763615254471,0.958,3061.3,3061.0,0.111]
[1763615254799,0.0016565,3061.4,3061.0,0.111]
[1763615254800,0.4829,3061.1,3061.0,0.111]
[1763615255002,0.4751,3061.2,3061.0,0.111]
[1763615255180,0.0016565,3061.4,3061.1,0.95699264]
[1763615255375,0.0016565,3061.4,3061.3,4.8510725]
[1763615256171,0.09083496,3062.5,3061.1,0.05]
[1763615256397,3.45717104,3063.9,3063.0,0.05]
[1763615256699,3.45717104,3063.9,3062.0,0.112]
[1763615256700,0.6684,3063.0,3062.0,0.112]
[1763615256900,0.7367733,3062.9,3062.1,0.112]
[1763615257104,6.52997256,3062.8,3062.1,0.0695]
[1763615257268,7.00507256,3062.8,3061.6,3.94407986]
[1763615257467,0.4751,3062.7,3061.7,0.112]
[1763615257703,1.24928459,3062.7,3061.7,0.112]
[1763615258075,0.4728,3062.6,3061.7,0.112]
[1763615258276,0.1926,3061.8,3061.7,0.112]
[1763615258507,0.1926,3062.0,3061.7,0.112]
[1763615258998,0.6654,3062.0,3061.7,0.112]
[1763615259203,3.26594598,3061.9,3061.7,0.112]
[1763615259399,0.71972394,3061.8,3060.5,3.99407986]